bitfinex-derivatives/quotes_ETHF0:USTF0_20241018
["timestamp","ask_amount","ask_price","bid_price","bid_amount"]
[1729248196000,1.37,2629.1,2629.0,1.75046]
[1729248196492,0.4193,2629.2,2629.1,0.38045]
[1729248196692,1.7893,2629.2,2629.1,0.38045]
[1729248196897,2.16973,2629.2,2629.1,0.77285]
[1729248202699,0.4193,2629.2,2629.1,5.94605]
[1729248202906,3.6184,2629.5,2629.4,0.3804]
[1729248203200,4.9884,2629.5,2629.4,1.7504]
[1729248203789,4.9884,2629.5,2629.4,0.3804]
[1729248203790,5.36879,2629.5,2629.4,0.3804]
[1729248204197,4.9884,2629.5,2629.4,0.3804]
[1729248204599,5.3912,2629.5,2629.4,0.3804]
[1729248208299,2.1834,2629.5,2629.4,0.3804]
[1729248210006,2.96559,2629.5,2629.4,0.3804]
[1729248211206,1.7806,2629.5,2629.4,0.3804]
[1729248211400,1.7806,2629.5,2629.4,1.36991714]
[1729248211805,1.7806,2629.5,2629.4,2.73991714]
[1729248213112,1.7806,2629.5,2629.4,3.16401714]
[1729248214223,1.7806,2629.5,2629.4,1.79401714]
[1729248215219,2.16099,2629.5,2629.4,3.16401714]
[1729248215406,1.7806,2629.5,2629.4,3.16401714]
[1729248218813,2.16099,2629.5,2629.4,3.16401714]
[1729248219211,1.7806,2629.5,2629.4,3.16401714]
[1729248220819,1.7806,2629.5,2629.4,2.1745]
[1729248224723,1.7806,2629.5,2629.4,0.3804]
[1729248224724,2.16099,2629.5,2629.4,0.3804]
[1729248226215,0.38042,2629.4,2629.3,0.38041]
[1729248226423,0.38042,2629.3,2629.2,0.38042]
[1729248226626,2.16642,2629.3,2629.2,0.38042]
[1729248226817,1.786,2629.3,2629.0,5.56731714]
[1729248227121,1.37,2629.1,2629.0,4.95826]
[1729248227512,2.1893,2629.1,2629.0,4.95826]
[1729248227716,2.1893,2629.1,2628.9,0.4205]
[1729248227918,1.75047,2629.0,2628.9,1.36999714]
[1729248228126,1.75047,2629.0,2628.9,0.98951714]
[1729248228318,1.75047,2629.0,2628.8,1.36999714]
[1729248228319,0.38048,2628.9,2628.8,1.36999714]
[1729248228519,2.16648,2628.9,2628.8,1.36999714]
[1729248228719,0.416,2628.9,2628.8,2.73999714]
[1729248228912,0.416,2628.9,2628.8,3.29109891]
[1729248229117,0.416,2628.9,2628.8,4.77537463]
[1729248229522,1.786,2628.9,2628.8,4.28594203]
[1729248229728,1.786,2628.9,2628.8,2.74532312]
[1729248229931,1.786,2628.9,2628.8,4.28612021]
[1729248230117,1.786,2628.9,2628.8,3.29127709]
[1729248230318,1.786,2628.9,2628.8,4.77555281]
[1729248230616,1.786,2628.9,2628.8,4.28621635]
[1729248231013,1.786,2628.9,2628.8,4.28636798]
[1729248231227,1.786,2628.9,2628.8,4.28645175]
[1729248231422,1.786,2628.9,2628.8,3.29142872]
[1729248232123,1.786,2628.9,2628.8,4.77570444]
[1729248232632,1.786,2628.9,2628.8,3.29142872]
[1729248232929,0.416,2628.9,2628.8,4.77570444]
[1729248233919,1.37,2629.0,2628.8,4.39522444]
[1729248234122,1.37,2629.0,2628.9,3.29142872]
[1729248234321,1.37,2629.0,2628.9,4.69470264]
[1729248235732,1.37,2629.0,2628.9,4.69346249]
[1729248236127,1.37,2629.0,2628.9,4.69345071]
[1729248237825,0.8193,2629.1,2628.9,3.31770857]
[1729248238129,0.8193,2629.1,2629.0,4.28556376]
[1729248238525,0.8193,2629.1,2629.0,3.29028916]
[1729248238841,0.8193,2629.1,2629.0,4.28582501]
[1729248239519,1.19975,2629.1,2629.0,4.28582501]
[1729248239921,1.19975,2629.1,2629.0,3.29028916]
[1729248240124,2.56975,2629.1,2629.0,2.74596382]
[1729248243035,2.1893,2629.1,2629.0,1.75046]
[1729248243242,0.4089,2629.1,2629.0,1.75046]
[1729248243533,0.4089,2629.1,2629.0,2.74596382]
[1729248250140,1.37,2629.3,2629.0,2.36550382]
[1729248250334,1.75041,2629.4,2629.3,0.38042]
[1729248250730,1.75041,2629.4,2629.3,1.38840382]
[1729248252440,1.75041,2629.4,2629.3,1.76882382]
[1729248252770,1.75041,2629.4,2629.3,1.38840382]
[1729248253127,1.75041,2629.4,2629.3,1.76882382]
[1729248253238,1.75041,2629.4,2629.3,1.38840382]
[1729248253553,1.7504,2629.4,2629.3,1.76882382]
[1729248254050,1.7504,2629.4,2629.3,1.38840382]
[1729248254443,1.7504,2629.4,2629.3,3.30618815]
[1729248254844,1.7504,2629.4,2629.3,3.30609391]
[1729248255041,1.7504,2629.4,2629.3,1.76882382]
[1729248256742,1.7504,2629.4,2629.3,3.30612591]
[1729248256938,1.7504,2629.4,2629.3,1.76882382]
[1729248257136,1.7504,2629.4,2629.3,1.38840382]
[1729248258646,1.7504,2629.4,2629.3,0.3929]
[1729248258837,1.37,2629.4,2629.2,1.37593382]
[1729248259041,2.15482,2629.3,2629.2,0.38043]
[1729248259536,2.15482,2629.3,2629.2,1.37593382]
[1729248260045,1.7744,2629.3,2629.2,1.37593382]
[1729248260740,1.7744,2629.3,2629.2,2.74593382]
[1729248261150,2.15482,2629.3,2629.2,2.74593382]
[1729248261450,0.8052,2629.5,2629.2,2.36550382]
[1729248261648,0.8052,2629.5,2629.4,1.37]
[1729248261859,0.8052,2629.5,2629.4,1.7504]
[1729248262053,0.8052,2629.5,2629.4,2.174]
[1729248264945,2.1752,2629.5,2629.4,2.174]
[1729248265744,2.1752,2629.5,2629.4,3.33683078]
[1729248267345,2.1752,2629.5,2629.4,4.70683078]
[1729248268260,2.55559,2629.5,2629.4,3.71132696]
[1729248268463,2.55559,2629.5,2629.4,3.33604559]
[1729248268958,2.1752,2629.5,2629.4,3.33604559]
[1729248270550,2.55559,2629.5,2629.4,3.33605211]
[1729248273062,2.55559,2629.5,2629.4,1.53732696]
[1729248273373,2.55559,2629.5,2629.4,0.99476198]
[1729248273860,2.55559,2629.5,2629.3,0.38042]
[1729248273861,0.3804,2629.4,2629.3,0.38042]
[1729248274054,1.7504,2629.4,2629.3,0.38042]
[1729248275461,0.3804,2629.4,2629.3,1.75042]
[1729248280560,0.3804,2629.4,2629.3,1.37]
[1729248280766,0.3804,2629.4,2629.3,4.39090619]
[1729248282059,0.3804,2629.4,2629.3,2.90663047]
[1729248282257,0.3804,2629.4,2629.3,1.53663047]
[1729248282853,0.3804,2629.4,2629.3,3.02985236]
[1729248283365,0.3804,2629.4,2629.3,3.28705047]
[1729248284263,0.3804,2629.4,2629.3,3.28704047]
[1729248285169,0.3804,2629.4,2629.3,5.26607476]
[1729248287770,0.3804,2629.4,2629.3,5.38504092]
[1729248288471,0.3804,2629.4,2629.3,8.46063353]
[1729248288969,0.8052,2629.5,2629.3,3.02559663]
[1729248289170,1.1856,2629.5,2629.4,2.65260809]
[1729248289367,1.1856,2629.5,2629.4,2.95414863]
[1729248289574,1.1856,2629.5,2629.4,1.41644401]
[1729248292874,1.1856,2629.5,2629.4,2.95436829]
[1729248293270,1.1856,2629.5,2629.4,1.41644401]
[1729248294272,1.1856,2629.5,2629.4,2.95445336]
[1729248295775,1.1856,2629.5,2629.4,3.93754364]
[1729248298277,1.1856,2629.5,2629.4,7.1330772]
[1729248298484,1.1856,2629.5,2629.4,7.13314659]
[1729248298675,1.1856,2629.5,2629.4,7.01418473]
[1729248299070,1.1856,2629.5,2629.4,7.13314781]
[1729248299471,1.1856,2629.5,2629.4,7.13334748]
[1729248299673,1.1856,2629.5,2629.4,7.51374748]
[1729248299877,1.1856,2629.5,2629.4,7.51374681]
[1729248300074,1.1856,2629.5,2629.4,7.90854681]
[1729248301071,1.1856,2629.5,2629.4,7.90854962]
[1729248302078,1.1856,2629.5,2629.4,7.7895844]
[1729248303071,1.1856,2629.5,2629.4,7.79116279]
[1729248303676,1.1856,2629.5,2629.4,3.93834379]
[1729248304078,1.1856,2629.5,2629.4,4.31874379]
[1729248304579,1.1856,2629.5,2629.4,7.39674265]
[1729248304984,1.1856,2629.5,2629.4,7.01634265]
[1729248305173,1.1856,2629.5,2629.4,0.4205]
[1729248306283,1.1856,2629.5,2629.4,0.8009]
[1729248309283,1.1856,2629.5,2629.4,0.91986406]
[1729248309486,1.1856,2629.5,2629.4,7.53261071]
[1729248309686,1.1856,2629.5,2629.4,7.15221723]
[1729248309883,2.5556,2629.5,2629.4,6.61275317]
[1729248310082,2.5556,2629.5,2629.4,1.53949274]
[1729248310279,2.5556,2629.5,2629.4,3.03541986]
[1729248310882,0.38042,2629.3,2629.2,1.37767013]
[1729248311083,1.75042,2629.3,2629.2,3.03628178]
[1729248311289,1.75042,2629.3,2629.2,3.03628182]
[1729248311878,1.75042,2629.3,2629.2,2.03904169]
[1729248312081,1.75042,2629.3,2629.2,1.65861169]
[1729248312289,1.75042,2629.3,2629.2,3.03622797]
[1729248312784,1.75042,2629.3,2629.2,3.03613867]
[1729248313074,1.75042,2629.3,2629.2,1.4965855]
[1729248314599,1.75042,2629.3,2629.2,1.37761628]
[1729248314799,1.75042,2629.3,2629.2,1.49658747]
[1729248315390,1.75042,2629.3,2629.2,1.37761628]
[1729248315681,1.75042,2629.3,2629.2,1.49658898]
[1729248316390,1.75042,2629.3,2629.2,1.11615898]
[1729248317390,1.75042,2629.3,2629.2,0.99718628]
[1729248317594,1.75042,2629.3,2629.2,2.74761628]
[1729248317893,1.75042,2629.3,2629.2,3.29025689]
[1729248318300,0.38042,2629.4,2629.3,0.38042]
[1729248318491,0.38042,2629.4,2629.3,3.29024689]
[1729248319006,0.38042,2629.4,2629.3,2.9093194]
[1729248322997,1.75042,2629.4,2629.3,3.03490568]
[1729248323591,1.75042,2629.4,2629.3,1.5393194]
[1729248323793,1.37,2629.4,2629.3,3.03315303]
[1729248323993,1.7504,2629.4,2629.3,3.03315303]
[1729248328887,1.7504,2629.4,2629.3,3.0327565]
[1729248330798,1.7504,2629.4,2629.3,1.53727544]
[1729248330990,1.7504,2629.4,2629.3,2.5340211]
[1729248333103,0.38042,2629.3,2629.2,1.37]
[1729248333329,0.38042,2629.3,2629.2,1.75043]
[1729248339296,1.37,2629.4,2629.2,1.75043]
[1729248339505,0.38042,2629.3,2629.2,1.75043]
[1729248339699,0.38042,2629.3,2629.2,2.74717566]
[1729248339900,0.38042,2629.3,2629.2,1.75043]
[1729248341101,0.38042,2629.3,2629.2,5.28117812]
[1729248343801,0.38042,2629.4,2629.2,5.28133348]
[1729248344003,0.38042,2629.4,2629.3,3.0310773]
[1729248344702,0.38042,2629.4,2629.3,1.53662853]
[1729248345108,0.38042,2629.4,2629.3,3.03091379]
[1729248345606,0.38042,2629.4,2629.3,1.53662853]
[1729248347611,0.38042,2629.4,2629.3,1.91704853]
[1729248348216,0.8052,2629.5,2629.4,0.3804]
[1729248348509,3.6357,2630.0,2629.9,0.38033]
[1729248348713,0.4022,2630.2,2630.1,0.3803]
[1729248348911,0.4022,2630.2,2630.1,1.7503]
[1729248349106,2.15244,2630.6,2630.1,2.36567959]
[1729248349306,2.15244,2630.6,2630.5,1.37]
[1729248349307,2.55564,2630.6,2630.5,1.37]
[1729248349506,0.38025,2630.5,2630.4,1.37]
[1729248349706,1.37,2630.5,2630.1,0.99567959]
[1729248350002,1.37,2630.5,2629.7,0.99567959]
[1729248350003,0.38035,2629.8,2629.7,0.99567959]
[1729248350205,0.38036,2629.7,2629.6,0.4083]
[1729248350508,2.5941,2629.7,2629.4,3.2078]
[1729248350708,1.75039,2629.5,2629.4,3.2078]
[1729248351110,0.3804,2629.4,2629.3,1.7807]
[1729248351298,0.8016,2629.4,2629.3,1.7807]
[1729248351902,0.4212,2629.4,2629.3,1.7807]
[1729248352304,0.8016,2629.4,2629.3,1.7807]
[1729248352611,0.4212,2629.4,2629.3,1.7807]
[1729248353016,0.8016,2629.4,2629.3,1.7807]
[1729248353914,0.4212,2629.4,2629.3,1.7807]
[1729248354611,0.4212,2629.4,2629.3,2.16112]
[1729248356207,0.4212,2629.4,2629.3,3.15679959]
[1729248358408,2.1919,2629.7,2629.5,0.38038]
[1729248358409,0.4032,2629.7,2629.5,0.38038]
[1729248358613,0.4032,2629.7,2629.6,1.37]
[1729248359115,0.4032,2629.7,2629.6,1.75038]
[1729248359313,0.4032,2629.7,2629.6,1.37]
[1729248359519,0.4032,2629.7,2629.6,1.75038]
[1729248359721,0.4032,2629.7,2629.6,1.37]
[1729248361213,0.4032,2629.7,2629.6,1.75038]
[1729248361711,0.3929,2629.9,2629.8,0.38035]
[1729248361918,0.8152,2629.9,2629.8,1.75035]
[1729248365220,4.145,2631.4,2629.8,6.5424]
[1729248365410,0.4164,2630.9,2630.3,3.2078]
[1729248365607,0.38022,2630.7,2630.4,0.8152]
[1729248365824,0.3881,2630.8,2630.6,1.37]
[1729248366119,2.13831,2630.8,2630.6,1.37]
[1729248366514,1.75023,2630.7,2630.4,0.8152]
[1729248366705,1.75023,2630.7,2630.3,1.37]
[1729248366706,1.37,2630.5,2630.3,1.37]
[1729248366912,0.8015,2630.4,2630.1,0.3803]
[1729248367217,0.8015,2630.4,2630.3,1.37]
[1729248369222,0.8015,2630.4,2630.3,1.75027]
[1729248369624,0.8015,2630.4,2630.3,1.37]
[1729248369823,0.8015,2630.4,2630.3,1.75027]
[1729248373828,1.1998,2630.4,2630.3,1.75027]
[1729248382336,40.8,2630.7,2630.3,2.74]
[1729248382538,0.3979,2630.8,2630.7,0.38022]
[1729248382734,0.3979,2630.8,2630.7,2.14112]
[1729248382934,0.8003,2630.8,2630.7,2.14112]
[1729248384135,1.37,2631.4,2631.3,0.38013]
[1729248384332,2.5623,2631.4,2631.3,0.38013]
[1729248384532,4.9923,2631.4,2631.3,1.75013]
[1729248384727,6.3623,2631.4,2631.3,0.38013]
[1729248385037,6.74242,2631.4,2631.3,0.38013]
[1729248385230,1.1923,2631.4,2631.3,1.75013]
[1729248386127,2.5623,2631.4,2631.3,1.75013]
[1729248387329,2.94242,2631.4,2631.3,1.75013]
[1729248387529,2.5623,2631.4,2631.3,1.75013]
[1729248388131,3.58786,2631.8,2631.7,0.38007]
[1729248388326,3.58786,2631.8,2631.7,1.75007]
[1729248388526,3.58786,2631.8,2631.7,1.37]
[1729248388936,3.58786,2631.8,2631.7,1.75007]
[1729248389237,3.2078,2631.8,2631.7,1.75007]
[1729248389547,3.98546,2631.8,2631.7,1.75007]
[1729248390242,3.98546,2631.8,2631.7,1.37]
[1729248391938,3.98546,2631.8,2631.7,1.75007]
[1729248392338,3.98546,2631.8,2631.7,1.37]
[1729248392542,5.35546,2631.8,2631.7,1.37]
[1729248393634,4.9754,2631.8,2631.6,1.37]
[1729248393945,1.20937,2631.7,2631.6,1.37]
[1729248395736,2.57937,2631.7,2631.6,1.37]
[1729248404450,1.20937,2631.7,2631.6,1.37]
[1729248405342,0.3976,2631.8,2631.6,1.37]
[1729248405545,0.3976,2631.8,2631.7,1.75007]
[1729248406640,2.14766,2631.8,2631.7,1.75007]
[1729248407035,2.14766,2631.8,2631.7,1.37]
[1729248411636,5.5676,2631.8,2631.5,1.37]
[1729248411841,1.75009,2631.6,2631.5,1.37]
[1729248412048,0.38016,2631.2,2631.1,0.38015]
[1729248412252,0.38014,2631.2,2631.1,2.17585]
[1729248415653,0.38014,2631.2,2631.1,1.7957]
[1729248415862,0.77114,2631.2,2631.1,1.7957]
[1729248416344,0.77114,2631.2,2630.9,0.4199]
[1729248416345,1.761,2631.2,2630.9,0.4199]
[1729248416542,1.75017,2631.0,2630.9,1.37]
[1729248416745,1.37,2631.0,2630.8,1.7966]
[1729248416950,2.14419,2630.9,2630.8,1.7966]
[1729248417461,0.38023,2630.6,2630.5,1.37]
[1729248417658,1.75023,2630.6,2630.5,1.37]
[1729248419351,1.37,2630.6,2630.3,0.4138]
[1729248419548,0.4169,2630.8,2630.4,1.37]
[1729248419549,1.75025,2630.5,2630.4,1.37]
[1729248419749,3.58019828,2630.8,2630.3,0.4138]
[1729248419956,0.78646,2630.4,2630.3,0.4138]
[1729248420549,0.78646,2630.4,2630.3,0.79407]
[1729248421157,0.4062,2630.4,2630.3,0.79407]
[1729248421365,0.4062,2630.4,2630.3,3.76407]
[1729248421861,0.38024,2630.6,2630.4,0.38026]
[1729248423358,0.3998,2630.7,2630.5,2.97]
[1729248423560,0.77998,2631.0,2630.9,0.38019]
[1729248423749,0.3998,2631.0,2630.9,0.38019]
[1729248423952,0.38017,2631.1,2631.0,0.38017]
[1729248424255,0.38018,2631.0,2630.9,0.38018]
[1729248424456,3.2078,2631.2,2630.7,3.3674]
[1729248424660,0.3802,2630.9,2630.8,0.38019]
[1729248424961,3.2078,2631.2,2630.7,0.3974]
[1729248425162,0.38018,2631.0,2630.9,0.38019]
[1729248427061,0.38019,2630.9,2630.8,0.38019]
[1729248427264,0.38019,2631.0,2630.7,3.3674]
[1729248427465,0.38019,2631.0,2630.9,0.38019]
[1729248427766,0.3802,2630.8,2630.7,0.77761]
[1729248427963,0.3802,2630.8,2630.7,0.3974]
[1729248428461,0.7969,2630.8,2630.7,0.3974]
[1729248428652,7.4253,2630.8,2630.3,0.3877]
[1729248428865,0.38024,2630.6,2630.5,0.38024]
[1729248429166,0.4048,2630.7,2630.4,0.77715]
[1729248429167,0.38025,2630.5,2630.4,0.77715]
[1729248430360,0.38025,2630.5,2630.2,3.2078]
[1729248430361,0.38027,2630.3,2630.2,3.2078]
[1729248430666,0.38029,2630.2,2630.1,0.3928]
[1729248430869,0.79699,2630.2,2630.1,0.3928]
[1729248432160,0.38028,2630.3,2630.2,0.38029]
[1729248432359,0.3882,2630.5,2630.1,3.3628]
[1729248432553,0.3882,2630.5,2630.4,0.38026]
[1729248433559,0.76845,2630.5,2630.4,0.38026]
[1729248434669,0.38025,2630.5,2630.4,0.38026]
[1729248435258,0.38026,2630.4,2630.2,0.38028]
[1729248435462,0.38026,2630.4,2630.3,0.38027]
[1729248435965,0.4076,2630.6,2630.1,0.3928]
[1729248436269,0.38025,2630.5,2630.4,0.38025]
[1729248437066,0.38025,2630.5,2630.3,0.38026]
[1729248437270,0.38025,2630.5,2630.4,0.38026]
[1729248439879,0.38025,2630.5,2630.4,1.75026]
[1729248441577,0.78784,2630.6,2630.5,0.38025]
[1729248441773,1.7776,2630.6,2630.2,1.37]
[1729248441974,0.38027,2630.4,2630.3,1.75027]
[1729248442468,0.79597,2630.4,2630.3,1.75027]
[1729248442672,1.7857,2630.4,2630.0,3.2078]
[1729248442874,0.3803,2630.2,2630.1,1.7503]
[1729248443074,0.3803,2630.2,2630.1,1.37]
[1729248443481,1.37,2630.2,2630.0,1.75031]
[1729248443679,0.4157,2630.4,2629.9,2.56733]
[1729248443680,0.38032,2630.0,2629.9,2.56733]
[1729248443874,1.37,2630.1,2629.9,2.187]
[1729248444071,0.38031,2630.1,2630.0,1.75032]
[1729248444476,1.7628,2630.2,2630.1,0.3803]
[1729248444477,0.7731,2630.2,2630.1,0.3803]
[1729248444679,0.7731,2630.2,2630.1,1.7503]
[1729248445071,0.7731,2630.2,2630.1,1.37]
[1729248445277,0.7731,2630.2,2630.1,1.7503]
[1729248446086,0.79597,2630.4,2630.3,0.38027]
[1729248446280,0.79597,2630.4,2630.3,1.75027]
[1729248446580,1.7628,2630.6,2630.3,1.37]
[1729248446784,1.7628,2630.6,2630.0,3.2078]
[1729248446785,0.38025,2630.5,2630.4,1.75025]
[1729248447875,2.1878,2630.6,2630.3,1.37]
[1729248448077,1.37,2630.5,2630.3,1.37]
[1729248448275,1.75025,2630.5,2630.4,0.38026]
[1729248449982,0.38025,2630.5,2630.4,0.38026]
[1729248451083,2.56804,2630.6,2630.5,0.38025]
[1729248452375,1.19804,2630.6,2630.5,0.38025]
[1729248452690,0.77304,2630.6,2630.5,1.75025]
[1729248452991,0.77303,2630.6,2630.5,1.75025]
[1729248454586,0.3928,2630.6,2630.5,1.75025]
[1729248455182,0.3928,2630.6,2630.5,2.14895]
[1729248455786,3.2078,2630.8,2630.5,1.7687]
[1729248455990,1.94538,2631.2,2630.7,1.37]
[1729248455991,3.99617,2631.1,2630.7,1.37]
[1729248456292,5.75976,2631.1,2631.0,1.37]
[1729248457182,5.3796,2631.1,2630.9,1.75018]
[1729248457388,1.75017,2631.0,2630.9,1.75018]
[1729248458890,1.75017,2631.0,2630.9,1.75019]
[1729248459081,1.75017,2631.0,2630.9,1.37]
[1729248461292,1.37,2631.0,2630.7,1.7502]
[1729248461492,0.3802,2630.8,2630.7,1.7502]
[1729248461697,1.37,2630.8,2630.4,0.99445967]
[1729248461995,1.37,2630.6,2630.5,1.37]
[1729248462298,0.38024,2630.6,2630.5,1.75023]
[1729248462989,0.38024,2630.6,2630.5,1.37]
[1729248463189,0.7885,2630.7,2630.6,0.38023]
[1729248463389,1.16872,2630.7,2630.6,1.75023]
[1729248463596,0.7885,2630.7,2630.6,1.75023]
[1729248464494,1.16872,2630.7,2630.6,1.75023]
[1729248466099,0.7885,2630.7,2630.6,1.75023]
[1729248466297,0.3956,2630.7,2630.6,1.75023]
[1729248466508,0.4236,2630.9,2630.6,5.1716]
[1729248466797,0.4236,2630.9,2630.8,1.7502]
[1729248467400,0.80379,2630.9,2630.8,1.7502]
[1729248467602,0.4236,2630.9,2630.8,1.7502]
[1729248468699,0.80379,2630.9,2630.8,1.7502]
[1729248469306,0.4236,2630.9,2630.8,1.7502]
[1729248469704,0.80379,2630.9,2630.8,1.7502]
[1729248470807,1.7802,2631.0,2630.9,0.38019]
[1729248471002,2.16037,2631.0,2630.9,0.38019]
[1729248471204,2.55177,2631.0,2630.9,0.38019]
[1729248476302,2.55177,2631.0,2630.8,1.75019]
[1729248476303,0.38019,2630.9,2630.8,1.75019]
[1729248482430,1.37,2630.9,2630.7,1.7746]
[1729248482730,0.3802,2630.8,2630.7,2.15481]
[1729248485119,0.3802,2630.8,2630.7,1.7746]
[1729248485325,0.38023,2630.6,2630.5,0.38024]
[1729248485528,0.38023,2630.6,2630.5,1.75024]
[1729248485920,0.77993,2630.6,2630.5,1.37]
[1729248486434,0.77993,2630.6,2630.5,1.75025]
[1729248487025,0.38026,2630.4,2630.3,0.4163]
[1729248487223,1.37,2630.5,2630.3,1.7863]
[1729248487529,1.75026,2630.5,2630.4,1.75026]
[1729248488033,0.38026,2630.5,2630.4,1.75026]
[1729248489436,0.38026,2630.5,2630.4,1.37]
[1729248489833,0.38026,2630.5,2630.4,1.75026]
[1729248492841,0.38026,2630.5,2630.4,1.37]
[1729248493244,0.38026,2630.5,2630.4,1.75026]
[1729248495636,0.38026,2630.5,2630.4,1.37]
[1729248496035,0.38026,2630.5,2630.4,1.75026]
[1729248496726,0.38026,2630.5,2630.4,1.37]
[1729248497331,0.38026,2630.5,2630.4,1.75026]
[1729248503036,1.7697,2630.6,2630.4,1.37]
[1729248503248,0.38025,2630.5,2630.4,0.38025]
[1729248504732,0.3874,2630.7,2630.4,1.37]
[1729248504933,0.3874,2630.7,2630.6,1.75023]
[1729248505133,0.76819,2630.9,2630.8,0.3802]
[1729248505441,0.76819,2630.9,2630.8,1.7502]
[1729248506437,0.76819,2630.9,2630.8,1.37]
[1729248506737,0.76819,2630.9,2630.8,1.7502]
[1729248514739,0.38019,2630.9,2630.8,1.7502]
[1729248515448,0.76818,2631.0,2630.9,0.38019]
[1729248515649,0.76818,2631.0,2630.9,1.75019]
[1729248515947,0.388,2631.0,2630.9,1.75019]
[1729248518950,0.388,2631.0,2630.9,0.38019]
[1729248519168,0.38023,2630.7,2630.6,1.75023]
[1729248519755,0.77923,2630.7,2630.6,1.75023]
[1729248521052,0.77923,2630.7,2630.6,1.37]
[1729248522550,0.38024,2630.6,2630.5,0.38024]
[1729248522748,0.38024,2630.6,2630.5,1.37]
[1729248522749,1.21244,2630.6,2630.5,1.37]
[1729248522944,0.38025,2630.5,2630.4,1.7736]
[1729248523453,0.38025,2630.5,2630.4,2.15386]
[1729248527560,1.21244,2630.6,2630.5,0.38025]
[1729248527860,1.21244,2630.6,2630.5,1.75025]
[1729248528866,0.78494,2630.6,2630.5,1.75025]
[1729248534366,0.78494,2630.6,2630.5,1.37]
[1729248534761,0.78494,2630.6,2630.5,1.75025]
[1729248536870,0.4047,2630.6,2630.5,1.75025]
[1729248537075,0.4047,2630.6,2630.5,3.17380915]
[1729248537276,0.4047,2630.6,2630.5,2.74600915]
[1729248537457,0.38025,2630.5,2630.4,3.14960915]
[1729248538063,0.38025,2630.5,2630.4,2.76935915]
[1729248538374,0.38026,2630.4,2630.3,0.99575915]
[1729248538559,1.19556,2630.4,2630.3,1.37]
[1729248541065,1.19556,2630.4,2630.3,1.75027]
[1729248542556,1.19556,2630.4,2630.2,0.99575915]
[1729248542760,1.19556,2630.4,2630.1,1.49363872]
[1729248542761,0.38029,2630.2,2630.1,0.99575915]
[1729248542970,4.5778,2630.2,2629.8,0.99575915]
[1729248543267,0.38038,2629.6,2629.5,0.4109]
[1729248543479,1.37,2629.6,2629.5,0.4109]
[1729248543662,1.37,2629.6,2629.4,1.7504]
[1729248543663,0.38039,2629.5,2629.4,1.7504]
[1729248543863,0.38039,2629.5,2629.2,0.4175]
[1729248543864,0.3804,2629.4,2629.3,0.79131]
[1729248544077,2.1532,2629.5,2629.3,1.7809]
[1729248544274,2.1463,2629.4,2629.3,2.16131]
[1729248544475,1.7659,2629.4,2629.3,2.16131]
[1729248544967,1.7659,2629.4,2629.1,3.2078]
[1729248545170,1.75043,2629.2,2629.1,3.2078]
[1729248547863,1.75043,2629.2,2629.0,1.75046]
[1729248548170,1.75043,2629.2,2629.0,4.95826]
[1729248549675,1.75044,2629.2,2629.0,4.95826]
[1729248550260,0.38045,2629.1,2629.0,4.95826]
[1729248550465,1.37,2629.2,2629.0,4.95826]
[1729248550673,1.75044,2629.2,2629.0,4.95826]
[1729248551575,1.37,2629.2,2629.0,4.95826]
[1729248551768,0.38045,2629.1,2629.0,4.95826]
[1729248551967,0.38045,2629.1,2629.0,1.75046]
[1729248552171,1.75045,2629.2,2629.0,4.95826]
[1729248552373,0.38045,2629.2,2629.1,1.37]
[1729248552869,0.7832,2629.5,2629.3,0.38041]
[1729248553070,0.7832,2629.5,2629.4,0.3804]
[1729248553372,0.7832,2629.5,2629.4,1.37]
[1729248553873,0.4028,2629.5,2629.4,1.7504]
[1729248554677,0.78319,2629.5,2629.4,1.7504]
[1729248554868,0.78319,2629.5,2629.4,1.37]
[1729248555074,0.4028,2629.5,2629.4,1.7504]
[1729248555672,0.78319,2629.5,2629.4,1.7504]
[1729248556066,0.78319,2629.5,2629.4,1.37]
[1729248556067,2.15319,2629.5,2629.4,1.37]
[1729248556373,2.1532,2629.5,2629.4,1.7504]
[1729248558164,2.1532,2629.5,2629.4,1.37]
[1729248559167,2.1532,2629.5,2629.4,1.7504]
[1729248559372,2.1532,2629.5,2629.4,1.37]
[1729248559778,2.1532,2629.5,2629.4,1.7504]
[1729248560279,0.38045,2629.1,2629.0,0.38045]
[1729248560464,1.75045,2629.1,2629.0,1.75045]
[1729248560667,1.75045,2629.1,2629.0,0.38045]
[1729248560869,1.75045,2629.1,2629.0,1.37]
[1729248561066,0.38044,2629.2,2629.0,1.37]
[1729248561276,2.17873,2629.3,2629.1,1.75045]
[1729248561478,2.17873,2629.3,2629.2,1.37]
[1729248561677,3.2078,2629.4,2629.2,1.7621]
[1729248561976,3.58821,2629.4,2629.3,1.75042]
[1729248562176,3.5882,2629.4,2629.3,1.75042]
[1729248563076,3.2078,2629.4,2629.3,1.75042]
[1729248563474,4.5778,2629.4,2629.3,1.75042]
[1729248563873,1.7728,2629.5,2629.4,0.3804]
[1729248564075,3.2078,2629.7,2629.4,1.37]
[1729248564277,0.38036,2629.7,2629.6,1.75037]
[1729248564674,1.75036,2629.8,2629.6,1.75037]
[1729248564879,0.38036,2629.7,2629.6,1.75037]
[1729248565176,1.75036,2629.7,2629.6,0.38038]
[1729248565583,1.75036,2629.7,2629.5,1.75038]
[1729248565773,0.38036,2629.7,2629.6,0.77528]
[1729248566882,0.38036,2629.7,2629.6,0.3949]